bitfinex/quotes_SOLUSD_20241103
["timestamp","ask_amount","ask_price","bid_price","bid_amount"]
[1730661019128,0.3063864,160.14,160.13,0.1]
[1730661021045,0.3063864,160.14,160.13,6.3449]
[1730661021254,0.3063864,160.14,160.13,0.1]
[1730661021544,0.3063864,160.14,160.13,6.3449]
[1730661023346,0.3063864,160.14,160.13,0.1]
[1730661025823,15.70984449,160.14,160.13,0.1]
[1730661026126,21.95434449,160.14,160.12,0.1]
[1730661026324,15.40345809,160.13,160.12,0.1]
[1730661026836,0.3063864,160.14,160.13,0.1]
[1730661027239,15.70984449,160.14,160.13,0.1]
[1730661027535,21.95434449,160.14,160.13,0.1]
[1730661027849,21.95434449,160.14,160.11,0.1]
[1730661028038,21.95434449,160.14,160.13,0.1]
[1730661028039,6.5508864,160.14,160.13,0.1]
[1730661028465,21.95434449,160.14,160.13,0.1]
[1730661030228,21.95434449,160.14,160.12,0.1]
[1730661030555,6.5508864,160.14,160.13,0.1]
[1730661030847,38.44874449,160.14,160.09,0.1]
[1730661031051,15.40345809,160.1,160.08,0.1]
[1730661031650,23.0452864,160.14,160.04,15.40345809]
[1730661031651,23.0452864,160.14,160.09,0.1]
[1730661031830,15.40345809,160.12,160.11,0.1]
[1730661033442,21.64875809,160.12,160.11,0.1]
[1730661034025,15.40345809,160.13,160.11,0.1]
[1730661034230,15.40345809,160.12,160.11,0.1]
[1730661036752,15.40345809,160.13,160.11,0.1]
[1730661037052,15.40345809,160.13,160.12,0.1]
[1730661038448,21.64835809,160.13,160.12,0.1]
[1730661039956,21.64835809,160.13,160.08,0.1]
[1730661040157,15.40345809,160.09,160.08,0.1]
[1730661041637,15.40345809,160.09,160.07,0.1]
[1730661041934,15.40345809,160.08,160.07,0.1]
[1730661043859,15.40345809,160.08,160.05,6.2477]
[1730661043860,27.93335809,160.08,160.02,0.1]
[1730661044162,15.40345809,160.03,160.01,0.1]
[1730661044335,30.80691618,160.02,159.96,15.7282]
[1730661044548,15.40345809,159.98,159.96,15.7282]
[1730661044756,15.40345809,159.99,159.96,21.9797]
[1730661045063,15.40345809,159.99,159.98,0.1]
[1730661045638,15.40345809,160.0,159.98,0.1]
[1730661046047,15.40345809,160.01,159.99,0.1]
[1730661047248,15.40345809,160.01,160.0,0.1]
[1730661047456,15.40345809,160.02,160.0,0.1]
[1730661048564,15.40345809,160.01,160.0,0.1]
[1730661050655,21.65305809,160.01,160.0,0.1]
[1730661051345,15.40345809,160.01,160.0,0.1]
[1730661051547,15.40345809,160.03,160.01,0.1]
[1730661051750,15.40345809,160.03,160.02,0.1]
[1730661052853,15.40345809,160.03,160.01,0.1]
[1730661053051,15.40345809,160.02,160.01,0.1]
[1730661053568,37.05611618,160.02,160.01,0.1]
[1730661053770,6.452,160.01,159.96,0.1]
[1730661053958,6.452,160.01,159.94,0.1]
[1730661053959,15.40345809,159.97,159.94,0.1]
[1730661054177,15.40345809,159.95,159.94,0.1]
[1730661054343,15.40345809,159.95,159.93,0.1]
[1730661054548,20.0,160.0,159.94,0.1]
[1730661054768,15.40345809,159.95,159.94,0.1]
[1730661055269,15.40345809,159.95,159.93,0.1]
[1730661055471,6.2503,159.99,159.94,0.1]
[1730661055674,15.40345809,159.95,159.94,0.1]
[1730661055967,15.40345809,159.95,159.93,0.1]
[1730661056269,15.40345809,159.94,159.93,0.1]
[1730661056470,15.40345809,159.94,159.92,0.1]
[1730661056670,15.40345809,159.93,159.92,0.1]
[1730661058861,15.40345809,159.94,159.93,0.1]
[1730661059456,15.40345809,159.95,159.94,0.1]
[1730661060878,21.65535809,159.95,159.93,0.1]
[1730661061181,15.40345809,159.94,159.93,0.1]
[1730661063272,15.40345809,159.97,159.96,0.1]
[1730661063778,15.40345809,159.97,159.94,0.1]
[1730661063952,20.0,159.99,159.95,0.1]
[1730661064155,15.40345809,159.96,159.95,0.1]
[1730661064778,15.40345809,159.97,159.96,0.1]
[1730661066015,15.40345809,159.97,159.95,0.1]
[1730661066159,15.40345809,159.96,159.95,0.1]
[1730661066490,15.40345809,159.96,159.92,0.1]
[1730661066782,15.40345809,159.93,159.89,0.1]
[1730661066964,15.40345809,159.93,159.91,0.1]
[1730661067482,15.40345809,159.92,159.89,0.1]
[1730661067664,15.40345809,159.9,159.89,0.1]
[1730661068358,15.40345809,159.9,159.87,0.1]
[1730661068559,21.65755809,159.9,159.88,0.1]
[1730661068779,15.40345809,159.89,159.88,0.1]
[1730661069958,15.40345809,159.9,159.88,0.1]
[1730661070165,15.40345809,159.9,159.86,22.2003864]
[1730661070166,15.40345809,159.9,159.89,0.1]
[1730661070366,15.40345809,159.9,159.87,0.1]
[1730661070583,21.65655809,159.93,159.89,0.1]
[1730661070781,15.40345809,159.9,159.89,0.1]
[1730661070991,15.40345809,159.9,159.86,22.2003864]
[1730661070992,15.40345809,159.9,159.86,22.3003864]
[1730661071292,21.65655809,159.93,159.89,0.1]
[1730661071588,15.40345809,159.9,159.89,0.1]
[1730661071968,21.65735809,159.9,159.86,0.3063864]
[1730661072283,15.40345809,159.93,159.86,0.3063864]
[1730661072284,15.40345809,159.93,159.88,0.1]
[1730661072462,15.40345809,159.89,159.88,0.1]
[1730661072877,15.40345809,159.89,159.87,0.1]
[1730661073083,20.0,159.92,159.88,0.1]
[1730661073282,15.40345809,159.89,159.88,0.1]
[1730661078395,15.40345809,159.89,159.86,0.4063864]
[1730661078585,15.40345809,159.9,159.89,0.1]
[1730661078781,22.9292,159.99,159.94,0.1]
[1730661078977,15.40345809,159.95,159.94,0.1]
[1730661080380,6.2507,159.98,159.95,0.1]
[1730661080381,15.40345809,159.97,159.95,0.1]
[1730661080591,15.40345809,159.97,159.96,0.1]
[1730661080973,15.40345809,159.97,159.94,0.1]
[1730661081191,15.40345809,159.95,159.92,0.1]
[1730661081492,15.40345809,159.93,159.91,0.1]
[1730661081678,15.40345809,159.92,159.91,0.1]
[1730661081867,15.40345809,159.93,159.91,0.1]
[1730661082066,15.40345809,159.93,159.88,6.2546]
[1730661082067,15.40345809,159.93,159.92,0.1]
[1730661082298,15.40345809,159.94,159.93,0.1]
[1730661082469,15.40345809,159.95,159.94,0.1]
[1730661082668,15.6269,159.98,159.94,0.1]
[1730661082669,15.40345809,159.96,159.94,0.1]
[1730661082870,15.40345809,159.96,159.95,0.1]
[1730661084570,21.65495809,159.96,159.94,0.1]
[1730661084770,15.40345809,159.95,159.94,0.1]
[1730661086088,21.65535809,159.95,159.92,0.1]
[1730661086280,15.40345809,159.93,159.91,0.1]
[1730661086490,15.40345809,159.92,159.9,0.1]
[1730661086689,15.40345809,159.91,159.9,0.1]
[1730661087878,21.65695809,159.91,159.9,0.1]
[1730661090376,21.65695809,159.91,159.87,0.1]
[1730661090683,15.40345809,159.88,159.87,0.1]
[1730661090879,15.40345809,159.88,159.86,0.4063864]
[1730661091084,6.2535,159.91,159.87,0.1]
[1730661091276,15.40345809,159.88,159.87,0.1]
[1730661092299,6.255,159.87,159.86,0.3063864]
[1730661092498,21.65845809,159.87,159.86,0.3063864]
[1730661093973,21.65845809,159.87,159.79,23.15769437]
[1730661093974,21.65845809,159.87,159.81,0.1]
[1730661094179,15.40345809,159.82,159.79,0.1]
[1730661094408,6.2566,159.83,159.8,0.1]
[1730661094607,6.2566,159.83,159.81,0.1]
[1730661094898,6.2566,159.83,159.8,0.1]
[1730661095101,15.40345809,159.81,159.8,0.1]
[1730661095305,15.40345809,159.81,159.79,0.1]
[1730661095601,15.40345809,159.8,159.79,0.1]
[1730661096304,21.66125809,159.8,159.79,0.1]
[1730661096989,21.66125809,159.8,159.78,0.3063864]
[1730661097187,15.40345809,159.79,159.78,0.3063864]
[1730661098599,21.66165809,159.79,159.78,0.3063864]
[1730661100981,15.40345809,159.79,159.78,0.4063864]
[1730661102387,21.66165809,159.79,159.78,0.4063864]
[1730661102581,15.40345809,159.8,159.79,0.1]
[1730661103107,15.40345809,159.82,159.79,0.1]
[1730661103398,15.40345809,159.82,159.81,0.1]
[1730661104679,21.66045809,159.82,159.81,0.1]
[1730661105885,21.66045809,159.82,159.78,0.3063864]
[1730661106207,15.40345809,159.79,159.78,0.3063864]
[1730661106404,21.66165809,159.79,159.78,0.3063864]
[1730661107400,24.65932725,159.79,159.78,0.3063864]
[1730661108576,30.91752725,159.79,159.78,0.3063864]
[1730661115992,24.65932725,159.79,159.78,0.3063864]
[1730661116193,30.91752725,159.79,159.78,0.3063864]
[1730661116516,24.65932725,159.8,159.79,0.1]
[1730661119400,30.91712725,159.8,159.78,0.3063864]
[1730661119708,30.91712725,159.8,159.78,0.4063864]
[1730661119709,24.65932725,159.79,159.78,0.4063864]
[1730661119896,24.65932725,159.79,159.78,0.3063864]
[1730661120103,30.91752725,159.79,159.78,0.3063864]
[1730661120301,50.91752725,159.79,159.78,0.3063864]
[1730661120500,51.04301725,159.79,159.78,0.3063864]
[1730661120708,20.12549,159.78,159.72,0.1]
[1730661120890,24.65932725,159.73,159.72,0.1]
[1730661121089,24.65932725,159.74,159.72,0.1]
[1730661121290,21.9037,159.79,159.75,0.1]
[1730661121291,24.65932725,159.76,159.75,0.1]
[1730661122819,24.65932725,159.78,159.77,0.1]
[1730661123019,24.65932725,159.8,159.78,0.1]
[1730661123320,24.65932725,159.79,159.78,0.1]
[1730661124809,30.91752725,159.79,159.77,0.1]
[1730661125115,24.65932725,159.78,159.73,0.1]
[1730661125306,24.65932725,159.74,159.73,0.1]
[1730661126718,30.91942725,159.74,159.73,0.1]
[1730661127321,21.67908902,159.74,159.72,0.1]
[1730661127688,21.67908902,159.74,159.73,0.1]
[1730661128699,21.67908902,159.74,159.72,0.1]
[1730661128896,15.41898902,159.73,159.7,0.4063864]
[1730661129100,6.2601,159.74,159.72,0.1]
[1730661129310,15.41898902,159.73,159.72,0.1]
[1730661131100,21.67948902,159.73,159.72,0.1]
[1730661132128,15.41898902,159.73,159.72,0.1]
[1730661132305,21.67948902,159.73,159.72,0.1]
[1730661135518,15.41898902,159.73,159.72,0.1]
[1730661139004,21.67948902,159.73,159.72,0.1]
[1730661139623,15.41898902,159.73,159.72,0.1]
[1730661143126,21.67948902,159.73,159.72,0.1]
[1730661146414,15.41898902,159.78,159.77,0.1]
[1730661147523,21.67758902,159.78,159.77,0.1]
[1730661150033,15.41898902,159.78,159.77,0.1]
[1730661157236,21.67728902,159.79,159.77,0.1]
[1730661157436,15.41898902,159.79,159.78,0.1]
[1730661158035,21.67718902,159.79,159.78,0.1]
[1730661159412,9.85959627,159.79,159.78,0.1]
[1730661160028,9.85959627,159.79,159.77,0.1]
[1730661160236,9.85959627,159.78,159.77,0.1]
[1730661160935,9.85959627,159.79,159.77,0.1]
[1730661161330,9.85959627,159.78,159.75,0.1]
[1730661161646,9.85959627,159.76,159.75,0.1]
[1730661161942,9.85959627,159.76,159.74,0.1]
[1730661162150,9.85959627,159.75,159.74,0.1]
[1730661163651,16.11949627,159.75,159.72,0.1]
[1730661163949,6.2599,159.75,159.73,0.1]
[1730661164619,9.85959627,159.74,159.73,0.1]
[1730661165019,16.11969627,159.74,159.73,0.1]
[1730661165431,23.902374,159.81,159.73,0.1]
[1730661165432,9.85959627,159.75,159.73,0.1]
[1730661165631,9.85959627,159.75,159.74,0.1]
[1730661166346,9.85959627,159.75,159.73,0.1]
[1730661166539,6.2595,159.76,159.74,0.1]
[1730661166741,9.85959627,159.75,159.74,0.1]
[1730661167147,16.11929627,159.75,159.74,0.1]
[1730661168850,16.11929627,159.75,159.72,0.1]
[1730661169038,9.85959627,159.73,159.7,0.4063864]
[1730661169252,9.85959627,159.71,159.7,0.4063864]
[1730661170455,9.85959627,159.71,159.7,0.3063864]
[1730661170625,9.98508627,159.71,159.7,0.3063864]
[1730661171062,16.24638627,159.71,159.7,0.3063864]
[1730661171250,6.40609,159.7,159.64,0.1]
[1730661171535,6.40609,159.7,159.63,0.1]
[1730661171536,9.85959627,159.65,159.63,0.1]
[1730661171751,9.85959627,159.64,159.62,0.4063864]
[1730661172059,9.85959627,159.63,159.62,0.4063864]
[1730661173062,9.85959627,159.64,159.62,0.4063864]
[1730661173232,9.85959627,159.65,159.62,6.6711864]
[1730661173436,15.43251628,159.65,159.64,0.1]
[1730661174448,15.55800628,159.65,159.62,0.3063864]
[1730661174655,0.22549,159.65,159.62,0.3063864]
[1730661174831,15.43251628,159.63,159.62,0.3063864]
[1730661175042,21.69691628,159.63,159.62,0.3063864]
[1730661175873,41.69691628,159.63,159.62,0.3063864]
[1730661179646,15.43251628,159.63,159.62,0.3063864]
[1730661179943,15.43251628,159.66,159.64,0.1]
[1730661180348,15.43251628,159.66,159.65,0.1]
[1730661180559,15.43251628,159.66,159.64,0.1]
[1730661180751,15.43251628,159.65,159.63,0.1]
[1730661180942,15.43251628,159.64,159.63,0.1]
[1730661182141,15.43251628,159.66,159.64,0.1]
[1730661183167,15.43251628,159.67,159.66,0.1]
[1730661183468,15.43251628,159.68,159.66,0.1]
[1730661184267,21.69511628,159.68,159.66,0.1]
[1730661184761,21.69511628,159.68,159.63,6.2644]
[1730661184762,21.69511628,159.68,159.67,0.1]
[1730661185658,6.3605,159.73,159.68,0.1]
[1730661185838,15.43251628,159.69,159.68,0.1]
[1730661187238,15.43251628,159.69,159.65,0.1]
[1730661187438,21.69601628,159.66,159.63,0.1]
[1730661187680,6.2635,159.66,159.64,0.1]
[1730661187962,6.2635,159.66,159.65,0.1]
[1730661188360,15.43251628,159.67,159.66,0.1]
[1730661188744,15.43251628,159.7,159.67,0.1]
[1730661189063,15.43251628,159.7,159.69,0.1]
[1730661189764,21.69421628,159.7,159.69,0.1]
[1730661192369,37.47400628,159.7,159.68,0.1]
[1730661192575,15.43251628,159.69,159.68,0.1]
[1730661193670,15.43251628,159.69,159.65,0.1]
[1730661193880,15.43251628,159.66,159.65,0.1]
[1730661195679,21.69581628,159.66,159.64,0.1]
[1730661195878,15.43251628,159.65,159.63,0.1]
[1730661196175,15.43251628,159.64,159.63,0.1]
[1730661196476,21.69651628,159.64,159.63,0.1]
[1730661196874,15.43251628,159.7,159.68,0.1]
[1730661197869,21.69441628,159.7,159.68,0.1]
[1730661198556,21.69441628,159.7,159.69,0.1]
[1730661198779,15.43251628,159.71,159.69,0.1]
[1730661198976,15.43251628,159.72,159.7,0.1]
[1730661199371,15.43251628,159.71,159.7,0.1]
[1730661200972,15.43251628,159.72,159.71,0.1]
[1730661202680,21.81890628,159.72,159.69,0.1]
[1730661202878,6.2609,159.72,159.71,0.1]
[1730661203081,21.69341628,159.72,159.71,0.1]
[1730661203382,6.2609,159.72,159.71,0.1]
[1730661205163,21.69251628,159.75,159.73,0.1]
[1730661205360,22.78062387,159.78,159.76,0.1]
[1730661205586,6.2586,159.78,159.77,0.1]
[1730661205959,21.69111628,159.78,159.77,0.1]
[1730661206163,21.69041628,159.8,159.77,0.1]
[1730661206360,21.69041628,159.8,159.79,0.1]
[1730661206563,6.2579,159.8,159.79,0.1]
[1730661210067,15.43251628,159.8,159.79,0.1]
[1730661210271,15.43251628,159.8,159.78,0.1]
[1730661210472,15.43251628,159.79,159.77,0.1]
[1730661210782,15.43251628,159.78,159.77,0.1]
[1730661210985,15.43251628,159.78,159.76,0.1]
[1730661211361,15.43251628,159.77,159.76,0.1]
[1730661212260,70.0,159.81,159.77,0.1]
[1730661212261,15.43251628,159.79,159.77,0.1]
[1730661212579,15.43251628,159.8,159.79,0.1]
[1730661213788,15.43251628,159.8,159.78,0.1]
[1730661213966,15.43251628,159.79,159.78,0.1]
[1730661214168,6.2586,159.78,159.76,0.1]
[1730661214364,15.43251628,159.77,159.76,0.1]
[1730661215666,21.69141628,159.77,159.76,0.1]
[1730661220094,21.69141628,159.77,159.72,0.1]
[1730661220388,15.43251628,159.73,159.72,0.1]
[1730661220606,15.43251628,159.76,159.73,0.1]
[1730661220884,21.69111628,159.78,159.74,0.1]
[1730661221088,15.43251628,159.8,159.78,0.1]
[1730661221494,15.43251628,159.81,159.8,0.1]
[1730661222195,21.68991628,159.81,159.8,0.1]
[1730661222379,15.43251628,159.81,159.8,0.1]
[1730661222582,15.43251628,159.83,159.82,0.1]
[1730661224579,21.68911628,159.83,159.82,0.1]
[1730661230375,6.2566,159.83,159.82,0.1]
[1730661237100,15.43251628,159.87,159.84,0.1]
[1730661237318,9.84961928,159.87,159.86,0.1]
[1730661237902,16.10421928,159.88,159.86,0.1]
[1730661238278,9.84961928,159.89,159.86,0.1]
[1730661238482,6.2544,159.89,159.88,0.1]
[1730661239786,0.3063864,159.9,159.89,0.1]
[1730661241590,0.3063864,159.9,159.89,21.73957801]
[1730661242199,0.3063864,159.9,159.89,6.3542]
[1730661242514,0.3063864,159.9,159.89,0.1]
[1730661243306,0.3063864,159.9,159.89,21.73957801]
[1730661243482,0.3063864,159.9,159.89,45.84195201]
[1730661243685,0.3063864,159.9,159.89,52.34875201]
[1730661244410,0.3063864,159.98,159.97,0.1]
[1730661245702,0.3063864,159.98,159.97,6.3511]
[1730661247015,0.3063864,159.98,159.97,21.73647801]
[1730661247309,0.3063864,159.98,159.97,6.3511]
[1730661248100,0.3063864,159.98,159.97,21.73647801]
[1730661248279,0.3063864,159.98,159.97,21.83647801]
[1730661251716,0.3063864,160.06,160.05,0.1]
[1730661252192,0.3063864,160.06,160.05,15.48537801]
[1730661253007,0.3063864,160.06,160.05,6.348]
[1730661254912,0.3063864,160.06,160.05,0.1]
[1730661255100,15.69176441,160.06,160.05,0.1]
[1730661255498,0.3063864,160.06,160.05,0.1]
[1730661258102,0.3063864,160.06,160.05,6.348]
[1730661258795,0.3063864,160.06,160.05,21.73337801]
[1730661260115,0.3063864,160.06,160.05,45.83575201]
[1730661261519,0.3063864,160.14,160.13,0.1]
[1730661263109,21.93626441,160.14,160.13,0.1]
[1730661264602,0.3063864,160.14,160.13,0.1]
[1730661264804,0.3063864,160.14,160.13,6.3449]
[1730661267627,21.93626441,160.14,160.13,0.1]
[1730661268315,0.3063864,160.14,160.13,0.1]
[1730661269410,15.69176441,160.14,160.13,0.1]
[1730661269618,21.93626441,160.14,160.13,0.1]
[1730661270900,44.02076441,160.14,160.13,0.1]
[1730661271134,44.02076441,160.14,160.12,0.1]
[1730661271419,15.38537801,160.13,160.12,0.1]
[1730661271605,28.14576441,160.14,160.12,0.1]
[1730661271814,12.7603864,160.14,160.13,0.1]
[1730661272010,28.14576441,160.14,160.13,0.1]
[1730661272428,21.93626441,160.14,160.13,0.1]
[1730661272732,15.69176441,160.14,160.13,0.1]
[1730661274414,21.93626441,160.14,160.13,0.1]
[1730661275236,21.93626441,160.14,160.11,0.1]
[1730661275531,15.38537801,160.12,160.11,0.1]
[1730661276841,21.63067801,160.12,160.11,0.1]
[1730661277512,21.63067801,160.12,160.1,0.1]
[1730661277741,15.38537801,160.11,160.1,0.1]
[1730661279741,21.63107801,160.11,160.1,0.1]
[1730661281147,21.63107801,160.11,160.09,0.1]
[1730661281343,15.38537801,160.1,160.08,0.1]
[1730661281547,15.38537801,160.09,160.08,0.1]
[1730661283517,21.63177801,160.09,160.08,0.1]
[1730661284641,15.38537801,160.09,160.08,0.1]
[1730661284825,21.63177801,160.1,160.08,0.1]
[1730661285156,21.63107801,160.11,160.09,0.1]
[1730661285443,15.38537801,160.11,160.1,0.1]
[1730661285622,0.3063864,160.14,160.11,0.1]
[1730661285623,15.38537801,160.12,160.11,0.1]
[1730661292055,15.38537801,160.13,160.12,0.1]
[1730661295456,21.63027801,160.13,160.12,0.1]
[1730661297250,21.63027801,160.13,160.09,0.1]
[1730661297455,15.38537801,160.1,160.09,0.1]
[1730661297947,15.38537801,160.1,160.07,0.1]
[1730661298147,15.38537801,160.08,160.07,0.1]
[1730661299656,21.63217801,160.08,160.07,0.1]
[1730661300653,15.38537801,160.11,160.1,0.1]
[1730661300946,15.38537801,160.11,160.09,0.1]
[1730661301135,15.38537801,160.1,160.09,0.1]
[1730661301942,15.38537801,160.1,160.07,0.1]
[1730661302151,15.38537801,160.08,160.07,0.1]
[1730661302355,15.38537801,160.1,160.08,0.1]
[1730661302539,15.38537801,160.11,160.09,0.1]
[1730661302742,15.38537801,160.1,160.09,0.1]
[1730661302945,15.38537801,160.11,160.1,0.1]
[1730661303261,15.38537801,160.11,160.07,15.6181]
[1730661303262,0.3063864,160.14,160.13,0.1]
[1730661307149,15.69176441,160.14,160.13,0.1]
[1730661311764,21.93626441,160.14,160.13,0.1]
[1730661312062,0.3063864,160.14,160.13,0.1]
[1730661312641,15.69176441,160.14,160.13,0.1]
[1730661313038,0.3063864,160.14,160.13,6.3449]
[1730661314371,15.69176441,160.14,160.13,6.3449]
[1730661315773,15.69176441,160.14,160.13,0.1]
[1730661317173,0.3063864,160.14,160.13,0.1]
[1730661318179,10.12230335,160.14,160.13,0.1]
[1730661321202,0.3063864,160.14,160.13,6.3449]
[1730661323366,10.12230335,160.14,160.13,6.3449]
[1730661323770,0.3063864,160.14,160.13,6.3449]
[1730661326282,0.3063864,160.14,160.13,16.26081695]
[1730661326784,0.3063864,160.14,160.13,56.27199095]
[1730661326956,10.12230335,160.22,160.21,0.1]
[1730661326957,0.3063864,160.22,160.21,0.1]
[1730661328156,0.3063864,160.22,160.21,6.3418]
[1730661330059,10.12230335,160.22,160.21,0.1]
[1730661330357,16.36370335,160.22,160.21,0.1]
[1730661331783,20.1,160.18,160.08,6.2465]
[1730661331983,9.81591695,160.1,160.08,6.2465]
[1730661332184,9.81591695,160.1,160.07,21.8652]
[1730661332385,9.81591695,160.08,160.06,6.50531126]
[1730661333167,22.8886,160.14,160.06,6.50531126]
[1730661333168,9.81591695,160.09,160.06,6.50531126]
[1730661333367,15.3480587,160.09,160.06,12.75291126]
[1730661334268,15.3480587,160.13,160.08,0.1]
[1730661334474,15.3480587,160.14,160.09,15.3480587]
[1730661334667,15.3480587,160.15,160.09,31.6832587]
[1730661335080,15.3480587,160.15,160.1,15.3480587]
[1730661335874,15.3480587,160.17,160.11,15.3480587]
[1730661336277,15.3480587,160.17,160.12,21.8585]
[1730661336567,15.3480587,160.19,160.13,15.3480587]
[1730661337078,15.3480587,160.18,160.12,68.6330587]
[1730661337295,15.3480587,160.18,160.13,0.1]
[1730661337468,15.3480587,160.19,160.13,15.4480587]
[1730661337666,15.3480587,160.2,160.14,15.3480587]
[1730661337868,15.3480587,160.21,160.15,15.3480587]
[1730661338164,0.3063864,160.22,160.17,15.4480587]
[1730661338368,0.3063864,160.22,160.18,37.1983587]
[1730661338782,0.3063864,160.22,160.18,21.8503]
[1730661339190,0.3063864,160.22,160.18,37.1983587]
[1730661339483,0.3063864,160.22,160.18,37.2983587]
[1730661340168,0.3063864,160.22,160.18,21.8503]
[1730661341071,0.3063864,160.22,160.19,0.12549]
[1730661341272,0.3063864,160.22,160.21,15.3480587]
[1730661341470,0.3063864,160.22,160.2,15.5480587]
[1730661341671,0.3063864,160.22,160.21,15.3480587]
[1730661342496,0.3063864,160.22,160.21,21.6898587]
[1730661343963,0.3063864,160.22,160.21,21.5898587]
[1730661344169,0.3063864,160.22,160.21,6.2418]
[1730661345673,0.3063864,160.22,160.21,21.5898587]
[1730661345869,0.3063864,160.22,160.21,21.6898587]
[1730661346477,0.3063864,160.22,160.21,21.7898587]
[1730661348804,0.3063864,160.22,160.21,21.9153487]
[1730661349001,0.3063864,160.22,160.21,45.6922327]
[1730661354005,0.3063864,160.22,160.21,61.6365327]
[1730661357292,1.1063864,160.3,160.27,0.2]
[1730661357507,1.1063864,160.3,160.29,15.3480587]
[1730661358408,1.1063864,160.3,160.29,21.5866587]
[1730661359013,1.1063864,160.3,160.29,45.5890327]
[1730661359396,1.1063864,160.3,160.29,21.5866587]
[1730661359596,1.1063864,160.3,160.29,21.6866587]
[1730661359797,1.1063864,160.3,160.29,21.7866587]
[1730661360691,16.4544451,160.3,160.24,15.3480587]
[1730661360904,15.3480587,160.29,160.23,15.3480587]
[1730661361588,16.4544451,160.3,160.25,15.6006]
[1730661362519,15.3480587,160.29,160.25,15.6006]
[1730661363225,16.4544451,160.3,160.25,15.6006]
[1730661363535,1.1063864,160.3,160.25,31.0486587]
[1730661364322,1.1063864,160.3,160.26,15.3480587]
[1730661364712,1.1063864,160.3,160.27,21.838]
[1730661365113,1.1063864,160.3,160.27,37.1860587]
[1730661367407,1.1063864,160.3,160.27,21.838]
[1730661367633,15.3480587,160.28,160.24,15.6014]
[1730661367927,15.3480587,160.29,160.24,15.6014]
[1730661368131,1.1063864,160.3,160.25,15.3480587]
[1730661369413,16.4544451,160.3,160.26,6.2398]
[1730661369622,1.1063864,160.3,160.26,37.1874587]
[1730661370446,16.4544451,160.3,160.26,21.8394]
[1730661370604,15.3480587,160.29,160.26,21.8394]
[1730661371250,16.4544451,160.3,160.26,21.8394]
[1730661371531,16.4544451,160.3,160.26,15.5996]
[1730661372435,1.1063864,160.3,160.26,15.5996]
[1730661372736,1.1063864,160.3,160.26,21.8394]
[1730661374423,15.3480587,160.28,160.23,15.6021]
[1730661374628,15.3480587,160.25,160.22,6.49959902]
[1730661375136,15.3480587,160.25,160.2,21.8473]
[1730661375517,15.3480587,160.24,160.2,15.6052]
[1730661375819,15.3480587,160.22,160.19,6.50169692]
[1730661376726,15.3480587,160.23,160.19,12.74419692]
[1730661377533,15.3480587,160.23,160.19,6.50169692]
[1730661377734,15.3480587,160.23,160.17,15.6079]
[1730661377735,15.3480587,160.2,160.17,15.6079]
[1730661377934,15.3480587,160.19,160.17,15.6079]
[1730661378337,15.3480587,160.2,160.17,15.6079]
[1730661378535,15.3480587,160.21,160.17,21.8512]
[1730661378724,15.3480587,160.21,160.17,15.6079]
[1730661380326,15.3480587,160.18,160.14,22.11451097]
[1730661380545,15.3480587,160.16,160.13,6.2449]
[1730661380734,15.3480587,160.16,160.11,15.614]
[1730661380735,15.3480587,160.17,160.11,43.71128969]
[1730661381046,15.3480587,160.16,160.11,28.36323099]
[1730661381265,15.3480587,160.17,160.11,43.71128969]
[1730661381449,15.3480587,160.18,160.12,15.3480587]
[1730661381818,15.3480587,160.21,160.15,15.3480587]
[1730661382242,15.3480587,160.2,160.14,15.3480587]
[1730661383044,6.3073,160.22,160.17,15.3480587]
[1730661383254,21.7485587,160.26,160.21,15.3480587]
[1730661383438,6.4005,160.26,160.21,15.3480587]
[1730661383949,21.7485587,160.26,160.22,6.2414]
[1730661384157,27.9883587,160.26,160.22,6.2414]